[Event "TUR-ch Veterans 2020"]
[Site "Antalya-Belek"]
[Date "2020.01.20"]
[Round "3"]
[White "Bagci, Hikmet"]
[Black "Kocak, Sabri"]
[Result "1/2-1/2"]
[ECO "C97"]
[WhiteElo "1603"]
[BlackElo "2086"]
[Annotator "NA"]
[PlyCount "146"]
[EventDate "2020.01.19"]
[EventCountry "TUR"]
[SourceTitle "playchess.com"]
[Source "ChessBase"]
[SourceQuality "1"]
[TimeControl "5400+30"]

1. e4 {[%emt 0:00:30]} e5 {[%emt 0:00:30]} 2. Nf3 {[%emt 0:00:00]} Nc6 {[%emt 0:00:30]} 3. Bb5 {[%emt 0:00:00]} a6 {[%emt 0:00:00]} 4. Ba4 {[%emt 0:00:30]} Nf6 {[%emt 0:00:00]} 5. O-O {[%emt 0:00:30]} Be7 {[%emt 0:00:00]} 6. Re1 {[%emt 0:00:30]} b5 {[%emt 0:00:00]} 7. Bb3 {[%emt 0:00:00]} d6 {[%emt 0:00:00]} 8. c3 {[%emt 0:01:00]} O-O {[%emt 0:00:00]} 9. h3 {[%emt 0:00:00]} Na5 {[%emt 0:00:30]} 10. Bc2 {[%emt 0:00:00]} c5 {[%emt 0:00:00]} 11. d4 {[%emt 0:00:00]} Qc7 {[%emt 0:00:00]} 12. d5 {[%emt 0:00:00]} c4 {[%emt 0:01:30]} 13. Nbd2 {[%emt 0:01:30]} (13. b4 $16) 13... Bd7 {[%emt 0:02:30]} 14. Nf1 {[%emt 0:00:30]} Nb7 {[%emt 0:00:30]} 15. Ng3 {[%emt 0:00:30]} a5 {[%emt 0:01:30] C97: Closed Ruy Lopez: Chigorin Defence: 11 d4 Qc7, sidelines} (15... Nc5 16. Nh2 a5 17. Ng4 Nxg4 18. hxg4 g6 19. Be3 b4 20. g5 Rfb8 21. Qd2 {½-½ (21) Felgaer,R (2575)-Leitao,R (2636) Antofagasta 2015}) 16. Bg5 {[%emt 0:04:30]} Nc5 {[%emt 0:05:30]} 17. Qd2 {[%emt 0:08:30]} Rfc8 $146 {[%emt 0:05:30]} ({Predecessor:} 17... Rfb8 18. Nh4 b4 19. Nhf5 Bxf5 20. Nxf5 Bd8 21. Re3 Nh5 22. Bxd8 Qxd8 23. Qe2 {0-1 (47) Hanley,J (2213)-Sowray,P (2352) Great Yarmouth 2007}) 18. Nh4 {[%emt 0:04:30]} g6 {[%emt 0:10:30]} 19. f4 {[%emt 0:04:30]} h6 {[%emt 0:10:30]} 20. Bxf6 $2 {[%emt 0:02:30]} (20. Bxh6 $16 Nfxe4 21. Nxe4 Bxh4 {[#]} 22. fxe5 $1 {[%mdl 512]} dxe5 23. d6) 20... Bxf6 {[%emt 0:00:30]} 21. Nf3 {[%emt 0:00:30]} exf4 {[%emt 0:02:30]} 22. Qxf4 {[%emt 0:00:30]} Bg7 {[%emt 0:00:30]} 23. h4 {[%emt 0:06:30]} Re8 {[%emt 0:03:30]} 24. Re3 {[%emt 0:03:30]} Re7 {[%emt 0:04:30]} 25. Rae1 {[%emt 0:02:30]} Rae8 {[%emt 0:00:30]} 26. Ne2 {[%emt 0:10:30]} b4 {[%emt 0:09:30]} 27. Ned4 {[%emt 0:00:30]} h5 {[%emt 0:02:30]} 28. Kh1 {[%emt 0:07:30]} Na4 {[%emt 0:23:33]} (28... Qb6 $17 29. Nd2 Qa6) 29. Bxa4 {[%emt 0:06:30]} Bxa4 {[%emt 0:00:06]} 30. g4 {[%emt 0:00:30]} hxg4 {[%emt 0:00:50]} 31. Qxg4 {[%emt 0:00:30]} Bd7 {[%emt 0:09:31]} 32. Qg3 {[%emt 0:01:30]} Be5 {[%emt 0:00:11]} 33. Nxe5 {[%emt 0:00:30]} Rxe5 {[%emt 0:00:03]} 34. Nf3 {[%emt 0:00:30]} Rh5 {[%emt 0:00:19]} 35. Qf4 {[%emt 0:02:30]} Bc8 {[%emt 0:01:36]} 36. Rg1 {[%emt 0:00:30]} Qe7 {[%emt 0:01:20]} 37. Rg5 {[%emt 0:02:30]} Rxg5 {[%emt 0:00:31]} 38. hxg5 {[%emt 0:00:30]} Kg7 {[%emt 0:01:44]} 39. e5 {[%emt 0:01:30]} Rh8+ {[%emt 0:03:59]} 40. Kg2 {[%emt 0:01:30]} dxe5 {[%emt 0:00:27]} 41. Qxe5+ $2 {[%emt 0:02:30]} ({White should try} 41. Rxe5 $18 Bh3+ 42. Kg3) 41... Qxe5 {[%emt 0:00:17]} 42. Rxe5 {[%emt 0:00:30]} Rd8 {[%emt 0:00:14]} 43. Nd4 {[%emt 0:00:30]} Rxd5 {[%emt 0:01:10]} 44. Rxd5 {[%emt 0:04:30]} Bb7 {[%emt 0:00:01]} 45. Nc2 $2 {[%emt 0:01:30]} (45. Kf2 $11 Bxd5 46. cxb4 axb4 47. Ke3) 45... Bxd5+ {[%emt 0:00:30]} 46. Kf2 {[%emt 0:00:30]} bxc3 {[%emt 0:01:25]} 47. bxc3 {[%emt 0:00:30]} f6 {[%emt 0:00:15]} 48. gxf6+ {[%emt 0:00:30]} Kxf6 {[%emt 0:00:30]} 49. Ke3 {[%emt 0:00:30]} Ke5 {[%emt 0:00:00]} 50. Nd4 {[%emt 0:00:30]} g5 {[%emt 0:01:13]} 51. Ne2 {[%emt 0:00:30]} Be4 {[%emt 0:00:20]} 52. Ng3 {[%emt 0:00:30]} Bd3 {[%emt 0:00:19]} 53. Kf3 {[%emt 0:00:30]} Kd5 {[%emt 0:01:19]} 54. Ke3 {[%emt 0:04:13]} Kc5 {[%emt 0:00:31]} 55. Kd2 {[%emt 0:01:49]} Kb5 {[%emt 0:01:21]} 56. Kc1 {[%emt 0:00:01]} g4 {[%emt 0:00:00]} 57. Nh5 {[%emt 0:01:03]} Kc5 {[%emt 0:00:30]} 58. Kd2 {[%emt 0:00:05]} Kd5 {[%emt 0:00:00]} 59. Ke3 {[%emt 0:00:29]} Ke5 {[%emt 0:00:00]} 60. Ng3 {[%emt 0:00:34]} Bg6 {[%emt 0:00:16]} 61. Ne2 {[%emt 0:00:34]} Bd3 {[%emt 0:01:17]} 62. Ng3 {[%emt 0:00:33]} Kd5 {[%emt 0:00:51]} 63. Kd2 {[%emt 0:01:03]} Bg6 {[%emt 0:00:47]} 64. Ke3 {[%emt 0:02:44]} Kc5 {[%emt 0:00:30]} 65. Kd2 $19 {[%emt 0:00:00]} Kb5 {[%emt 0:00:22]} 66. Kc1 {[%emt 0:00:00]} Ka4 {[%emt 0:00:00]} 67. Kb2 {[%emt 0:00:04]} Bd3 {[%emt 0:00:45]} 68. Nh5 {[%emt 0:01:01]} Be2 {[%emt 0:00:30]} 69. Ng3 {[%emt 0:00:00]} Bd3 {[%emt 0:00:59]} 70. Nh5 {[%emt 0:00:24]} Kb5 {[%emt 0:00:30]} 71. Kc1 {[%emt 0:00:30]} Kc5 {[%emt 0:00:03]} 72. Ng3 {[%emt 0:00:26]} Kd5 {[%emt 0:00:30]} 73. Kd2 {[%emt 0:00:00]} Ke5 {[%emt 0:00:58]} 1/2-1/2

[Event "TUR-ch Veterans 2020"]
[Site "Antalya-Belek"]
[Date "2020.01.20"]
[Round "3"]
[White "Altin, Halis"]
[Black "Muratoglu, Salih"]
[Result "0-1"]
[ECO "B00"]
[WhiteElo "1551"]
[BlackElo "1967"]
[Annotator "NA"]
[PlyCount "162"]
[EventDate "2020.01.19"]
[EventCountry "TUR"]
[SourceTitle "playchess.com"]
[Source "ChessBase"]
[SourceQuality "1"]
[TimeControl "5400+30"]

1. e4 {[%emt 0:00:30]} b6 {[%emt 0:00:30]} 2. d4 {[%emt 0:00:00]} Bb7 {[%emt 0:00:00]} 3. Bd3 {[%emt 0:00:00]} Nf6 {[%emt 0:00:00]} 4. Nc3 {[%emt 0:01:30]} (4. Qe2 e6 5. Nf3 Be7 6. O-O c5 7. c3 Nc6 8. a3 d5 9. e5 Nd7 10. b4 g5 11. Be3 h6 12. Nbd2 Qc7 13. bxc5 bxc5 14. a4 c4 15. Bc2 Qa5 16. Nb1 {1-0 (29) Saric,I (2628)-Bacrot,E (2730) Bastia 2013}) 4... Nc6 {[%emt 0:00:30]} 5. Nf3 {[%emt 0:00:30]} d6 {[%emt 0:01:30]} 6. O-O {[%emt 0:01:30] B00: Queen's Fianchetto Defence, Nimzowitsch Defence} e5 {[%emt 0:00:30]} 7. d5 $146 {[%emt 0:04:30]} ({Predecessor:} 7. dxe5 Nxe5 8. Nxe5 dxe5 9. Bg5 Be7 10. Bb5+ {1-0 (37) Mora,C (1562)-Hermida Malagon,A Cartagena 2012}) 7... Ne7 {[%emt 0:00:30]} 8. Bb5+ {[%emt 0:00:30]} Nd7 {[%emt 0:00:30]} 9. Ng5 {[%emt 0:04:30]} h6 {[%emt 0:09:30]} 10. Nxf7 $2 {[%emt 0:10:30]} (10. Qh5 $18 {[%csl Gg5][%cal Rh5f7]} Ng6 11. Nxf7 {[%mdl 64] Decoy} Kxf7 12. Qf5+ Kg8 13. Qxg6 (13. Bxd7 Kh7 $18)) 10... Kxf7 {[%emt 0:00:30]} 11. Qg4 {[%emt 0:00:30] [#]} Nf6 $1 {[%emt 0:02:30]} 12. Qe6+ {[%emt 0:09:30]} Kg6 {[%emt 0:00:30]} 13. f4 {[%emt 0:02:30]} Bc8 {[%emt 0:02:30]} 14. f5+ {[%emt 0:00:30]} Kh7 {[%emt 0:00:30]} 15. Qf7 {[%emt 0:00:30]} Bd7 {[%emt 0:01:30]} 16. Bxd7 {[%emt 0:00:30]} Qxd7 {[%emt 0:01:30]} ({Much less strong is} 16... Nxd7 17. Bxh6 Qe8 18. Qxe8 $17) 17. Rf3 {[%emt 0:02:30]} Qe8 {[%emt 0:01:30]} 18. Qe6 {[%emt 0:00:30]} Neg8 {[%emt 0:00:30]} 19. Bd2 {[%emt 0:02:30]} Qxe6 {[%emt 0:00:30]} 20. fxe6 {[%emt 0:00:00]} Be7 {[%emt 0:00:30]} 21. Raf1 {[%emt 0:01:00]} a6 {[%emt 0:00:30]} 22. h3 {[%emt 0:00:30]} b5 {[%emt 0:00:30]} 23. a3 {[%emt 0:06:30]} Rc8 {[%emt 0:00:30]} 24. g4 {[%emt 0:00:30]} c5 {[%emt 0:01:30]} 25. Re3 {[%emt 0:05:30]} b4 {[%emt 0:00:30]} 26. Na4 {[%emt 0:00:30]} Rb8 {[%emt 0:01:30]} 27. axb4 {[%emt 0:02:30]} cxb4 {[%emt 0:00:30]} 28. c3 {[%emt 0:01:30]} bxc3 {[%emt 0:00:30]} 29. Bxc3 {[%emt 0:00:00]} Ne8 {[%emt 0:01:30]} 30. Rf7 {[%emt 0:05:00]} Bg5 {[%emt 0:00:30]} 31. Re2 {[%emt 0:00:30]} Ne7 {[%emt 0:02:30]} 32. Kh2 {[%emt 0:03:30]} Nc7 {[%emt 0:01:30]} 33. Kg3 {[%emt 0:01:30]} Rhe8 {[%emt 0:00:30]} 34. Ref2 {[%emt 0:01:30]} Nb5 {[%emt 0:02:30]} 35. Bb4 {[%emt 0:00:30]} Ng6 {[%emt 0:06:30]} 36. Kh2 {[%emt 0:11:30]} Bf4+ {[%emt 0:01:30]} 37. Kh1 {[%emt 0:00:30]} Rbc8 {[%emt 0:00:30]} 38. Nc3 {[%emt 0:00:30]} Rc4 $19 {[%emt 0:00:30]} (38... Nd4 {[%emt 0:00:30]}) 39. Ba5 {[%emt 0:00:30]} Nxc3 {[%emt 0:00:30]} 40. Bxc3 {[%emt 0:00:30]} Rxe4 {[%emt 0:00:30]} 41. Rd7 {[%emt 0:00:30]} Rc8 {[%emt 0:00:30]} 42. Rf1 {[%emt 0:00:30]} Re3 {[%emt 0:00:30]} 43. h4 {[%emt 0:00:30]} Rh3+ {[%emt 0:00:30]} 44. Kg2 {[%emt 0:00:30]} Rh2+ {[%emt 0:00:30]} 45. Kg1 {[%emt 0:00:30]} Rxh4 {[%emt 0:00:30]} 46. Rxd6 {[%emt 0:00:30]} Be3+ {[%emt 0:00:30]} 47. Kg2 {[%emt 0:00:30]} e4 {[%emt 0:00:30]} 48. Rd7 {[%emt 0:00:30]} Rxg4+ {[%emt 0:00:30]} 49. Kh3 {[%emt 0:00:30]} Rh4+ {[%emt 0:00:30]} 50. Kg3 {[%emt 0:00:30]} Bf4+ {[%emt 0:00:30]} 51. Rxf4 {[%emt 0:00:30]} Rxc3+ {[%emt 0:00:30]} 52. bxc3 {[%emt 0:00:30]} Rxf4 {[%emt 0:00:30]} 53. e7 {[%emt 0:02:30]} Rf3+ {[%emt 0:07:30]} 54. Kh2 {[%emt 0:00:30]} Nxe7 {[%emt 0:01:30]} 55. Rxe7 {[%emt 0:00:00]} Rxc3 {[%emt 0:00:30]} 56. Rxe4 {[%emt 0:00:00]} Rd3 {[%emt 0:00:30]} 57. Ra4 {[%emt 0:00:30]} Rxd5 {[%emt 0:00:30]} 58. Rxa6 {[%emt 0:00:30]} h5 {[%emt 0:00:30]} 59. Kh3 {[%emt 0:00:30]} g6 {[%emt 0:00:30]} 60. Kh4 {[%emt 0:00:30]} Kh6 {[%emt 0:00:30]} 61. Rb6 {[%emt 0:00:30]} Rd4+ {[%emt 0:00:30]} 62. Kh3 {[%emt 0:00:30]} Kg7 {[%emt 0:00:30]} 63. Ra6 {[%emt 0:00:30]} g5 {[%emt 0:00:00]} 64. Kg3 {[%emt 0:00:00]} Rf4 {[%emt 0:01:00]} 65. Rb6 {[%emt 0:00:00]} Rf6 {[%emt 0:00:00]} 66. Rb5 {[%emt 0:00:30]} Kg6 {[%emt 0:00:00]} 67. Ra5 {[%emt 0:00:30]} Rc6 {[%emt 0:00:30]} 68. Kg2 {[%emt 0:00:30]} h4 {[%emt 0:00:30]} 69. Ra4 {[%emt 0:01:30]} Kh5 {[%emt 0:00:30]} 70. Rb4 {[%emt 0:00:30]} Rc5 {[%emt 0:00:30]} 71. Kh3 {[%emt 0:00:30]} g4+ {[%emt 0:00:30]} 72. Kg2 {[%emt 0:00:30]} h3+ {[%emt 0:00:30]} 73. Kg3 {[%emt 0:00:30]} Rc3+ {[%emt 0:00:00]} 74. Kh2 {[%emt 0:00:30]} Rc2+ {[%emt 0:01:00]} 75. Kh1 {[%emt 0:00:30]} g3 {[%emt 0:00:30]} 76. Rb1 {[%emt 0:01:30]} Kg4 {[%emt 0:00:30]} 77. Ra1 {[%emt 0:01:58]} Kf4 {[%emt 0:00:30]} 78. Kg1 {[%emt 0:01:13]} Ke4 {[%emt 0:00:30]} 79. Rb1 {[%emt 0:00:25]} Kd3 {[%emt 0:00:30]} 80. Rb3+ {[%emt 0:01:11]} Rc3 {[%emt 0:00:30]} 81. Rb1 {[%emt 0:00:16]} Kd2 {[%emt 0:01:30]} 0-1

[Event "TUR-ch Veterans 2020"]
[Site "Antalya-Belek"]
[Date "2020.01.21"]
[Round "4"]
[White "Kocak, Sabri"]
[Black "Tozaki, Halil"]
[Result "1-0"]
[ECO "B43"]
[WhiteElo "2086"]
[BlackElo "1880"]
[Annotator "NA"]
[PlyCount "91"]
[EventDate "2020.01.19"]
[EventCountry "TUR"]
[SourceTitle "playchess.com"]
[Source "ChessBase"]
[SourceQuality "1"]
[TimeControl "5400+30"]

1. e4 {[%emt 0:00:30]} c5 {[%emt 0:00:30]} 2. Nf3 {[%emt 0:00:30]} e6 {[%emt 0:00:00]} 3. d4 {[%emt 0:00:00]} cxd4 {[%emt 0:00:00]} 4. Nxd4 {[%emt 0:00:00]} a6 {[%emt 0:00:30]} 5. Nc3 {[%emt 0:00:30]} Qc7 {[%emt 0:00:00]} 6. Be2 {[%emt 0:01:30]} Nf6 {[%emt 0:00:00]} 7. O-O {[%emt 0:01:30]} b5 {[%emt 0:02:30] [#]} 8. f4 {[%emt 0:05:30] B43: Sicilian: Kan Variation: 5 Nc3} (8. Bf3 $1 $16 Bb7 9. e5) (8. a3 Bb7 9. f3 Bd6 10. g3 Bxg3 11. hxg3 Qxg3+ 12. Kh1 Qh3+ 13. Kg1 Qg3+ 14. Kh1 Qh3+ 15. Kg1 Qg3+ 16. Kh1 {½-½ (16) Ulybin,M (2475)-Gleizerov,E (2490) Las Palmas 2019}) 8... b4 {[%emt 0:03:30]} 9. e5 {[%emt 0:00:30]} bxc3 {[%emt 0:01:30]} 10. exf6 {[%emt 0:00:30]} gxf6 {[%emt 0:01:30]} 11. bxc3 {[%emt 0:08:30]} Bb7 {[%emt 0:00:30]} 12. Rb1 {[%emt 0:01:30]} Nc6 {[%emt 0:01:30]} 13. Bf3 {[%emt 0:04:30]} Be7 $146 {[%emt 0:04:30]} ({Predecessor:} 13... Rc8 14. Be3 Na5 15. Kh1 Bxf3 16. Nxf3 {0-1 (54) Knittel,L (1890)-Dujardin,F (2062) Cap d'Agde 2008}) 14. Kh1 {[%emt 0:05:30]} O-O {[%emt 0:00:30]} 15. f5 {[%emt 0:06:30]} e5 {[%emt 0:00:30]} 16. Ne2 {[%emt 0:01:30]} Kh8 {[%emt 0:06:30]} 17. Ng3 {[%emt 0:04:30]} Rg8 {[%emt 0:05:30]} 18. Bd5 {[%emt 0:03:30]} Nd8 {[%emt 0:01:30]} 19. Bxb7 {[%emt 0:02:30]} Rb8 {[%emt 0:02:30]} 20. Qd5 {[%emt 0:04:30]} Rxb7 {[%emt 0:00:30]} 21. Rxb7 {[%emt 0:00:00]} Qxb7 $11 {[%emt 0:00:30]} 22. Rd1 {[%emt 0:00:00]} d6 {[%emt 0:14:30]} 23. c4 {[%emt 0:15:30]} Qxd5 {[%emt 0:06:30]} 24. cxd5 {[%emt 0:00:30]} Nb7 {[%emt 0:00:30]} 25. Be3 {[%emt 0:02:30]} Rc8 {[%emt 0:05:30]} 26. Rb1 {[%emt 0:00:30]} Na5 {[%emt 0:02:30]} 27. Rb4 {[%emt 0:03:30]} Bd8 {[%emt 0:06:30]} 28. Kg1 {[%emt 0:04:30]} Nc4 {[%emt 0:04:30]} 29. Bf2 {[%emt 0:03:30]} Kg8 {[%emt 0:01:30]} 30. Ne4 {[%emt 0:00:30]} Kg7 {[%emt 0:03:30]} 31. g4 {[%emt 0:00:30]} a5 {[%emt 0:01:30]} 32. Rb7 {[%emt 0:00:30]} Rc7 {[%emt 0:03:30]} 33. Rxc7 {[%emt 0:03:35]} Bxc7 {[%emt 0:00:30]} 34. Kg2 {[%emt 0:05:12]} Bb6 {[%emt 0:03:55]} 35. Nxd6 {[%emt 0:03:18]} Nxd6 {[%emt 0:03:15]} 36. Bxb6 {[%emt 0:00:21]} Nc4 {[%emt 0:00:41]} 37. Bc5 {[%emt 0:00:32]} e4 {[%emt 0:01:25]} 38. Kf2 {[%emt 0:02:23]} Ne5 {[%emt 0:00:20]} 39. h3 {[%emt 0:00:31]} h5 {[%emt 0:00:50]} 40. Ke3 {[%emt 0:02:35]} hxg4 {[%emt 0:02:14]} 41. hxg4 {[%emt 0:00:07]} Nxg4+ {[%emt 0:00:11]} 42. Kxe4 {[%emt 0:00:08]} Ne5 {[%emt 0:00:20]} 43. Bd4 {[%emt 0:01:03]} Nd7 {[%emt 0:00:47]} 44. c4 {[%emt 0:00:58]} Kf8 {[%emt 0:00:07]} 45. c5 {[%emt 0:00:40]} Ke7 {[%emt 0:01:00]} 46. c6 {[%emt 0:00:18]} 1-0

[Event "TUR-ch Veterans 2020"]
[Site "Antalya-Belek"]
[Date "2020.01.21"]
[Round "4"]
[White "Tofan, Ibrahim"]
[Black "Cetinkaya, Vedat Ali"]
[Result "1-0"]
[ECO "E01"]
[WhiteElo "2082"]
[BlackElo "2026"]
[Annotator "NA"]
[PlyCount "91"]
[EventDate "2020.01.19"]
[EventCountry "TUR"]
[SourceTitle "playchess.com"]
[Source "ChessBase"]
[SourceQuality "1"]
[TimeControl "5400+30"]

1. Nf3 {[%emt 0:00:30]} d5 {[%emt 0:01:30]} 2. g3 {[%emt 0:00:30]} Nf6 {[%emt 0:01:30]} 3. Bg2 {[%emt 0:00:00]} Nbd7 {[%emt 0:01:30]} 4. d4 {[%emt 0:01:00]} e6 {[%emt 0:00:30]} 5. O-O {[%emt 0:00:00]} Bd6 {[%emt 0:00:30]} 6. Bg5 {[%emt 0:00:00]} c6 {[%emt 0:00:30]} 7. Nbd2 {[%emt 0:01:30]} h6 {[%emt 0:04:30]} 8. Bxf6 {[%emt 0:01:30]} Nxf6 {[%emt 0:00:30]} 9. c4 {[%emt 0:00:30]} O-O {[%emt 0:05:30]} 10. Qc2 {[%emt 0:00:30]} Qe7 {[%emt 0:04:30] E01: Catalan: Early deviations} (10... b6 11. e4 Be7 12. Rfd1 Bb7 13. Rac1 Rc8 14. Ne5 dxc4 15. Ndxc4 b5 16. Qb3 a6 17. Ne3 Nd7 18. N3g4 Nxe5 19. Nxe5 {0-1 (59) Moroni,L (2559)-Wojtaszek,R (2738) Batumi 2018}) 11. Rfe1 $146 {[%emt 0:03:30]} ({Predecessor:} 11. Rfd1 c5 12. e4 dxe4 13. Nxe4 Nxe4 14. Qxe4 cxd4 15. Nxd4 a6 16. Rac1 Rb8 17. a3 Bc7 18. b4 {1-0 (31) Bai,J (2519)-Mainka,R (2417) Germany 2016}) 11... b6 {[%emt 0:15:30]} 12. e4 {[%emt 0:05:30]} dxe4 {[%emt 0:01:30]} 13. Nxe4 {[%emt 0:04:30]} Nxe4 {[%emt 0:01:30]} 14. Qxe4 {[%emt 0:01:30]} Bb7 {[%emt 0:00:30]} 15. Ne5 {[%emt 0:02:30]} Rac8 {[%emt 0:02:30]} 16. Rad1 {[%emt 0:00:30]} Rc7 {[%emt 0:00:30]} 17. Nd3 {[%emt 0:01:30]} c5 {[%emt 0:03:30]} 18. Qg4 {[%emt 0:03:30]} Bxg2 {[%emt 0:05:30]} 19. Kxg2 {[%emt 0:00:30]} cxd4 {[%emt 0:01:30]} 20. Qxd4 {[%emt 0:00:30]} Rd8 {[%emt 0:00:30]} 21. Qe4 {[%emt 0:04:30]} Rcd7 $11 {[%emt 0:02:30]} 22. Qf3 {[%emt 0:09:30]} Qg5 {[%emt 0:03:30]} 23. Nc1 {[%emt 0:04:30]} Qg6 {[%emt 0:06:30]} 24. Rd3 {[%emt 0:02:30]} Bb4 {[%emt 0:01:30]} 25. Red1 {[%emt 0:00:30]} Rxd3 {[%emt 0:02:30]} 26. Nxd3 {[%emt 0:01:30]} Qf6 {[%emt 0:02:30]} 27. Qxf6 {[%emt 0:03:30]} gxf6 {[%emt 0:00:30]} 28. Kf3 {[%emt 0:00:00]} Kf8 {[%emt 0:01:30]} 29. Ke2 {[%emt 0:00:00]} Bd6 {[%emt 0:00:30]} 30. b4 {[%emt 0:00:30]} Rc8 {[%emt 0:00:30]} 31. Rc1 {[%emt 0:01:30]} Be7 {[%emt 0:01:30]} 32. c5 {[%emt 0:01:30]} bxc5 {[%emt 0:00:30]} 33. Nxc5 {[%emt 0:00:30]} Ke8 {[%emt 0:02:30]} 34. a3 {[%emt 0:04:30]} a5 {[%emt 0:02:30]} 35. Kd3 {[%emt 0:01:30]} f5 {[%emt 0:04:30]} 36. Kc4 {[%emt 0:00:30]} axb4 {[%emt 0:00:37]} 37. axb4 {[%emt 0:00:30]} Bxc5 {[%emt 0:00:23]} 38. bxc5 {[%emt 0:02:30]} Kd7 {[%emt 0:00:30]} 39. Rd1+ {[%emt 0:00:30]} Kc7 {[%emt 0:00:30]} 40. Ra1 {[%emt 0:00:30]} Kb7 {[%emt 0:02:41]} 41. Kb5 {[%emt 0:02:30]} Rd8 {[%emt 0:05:48]} 42. c6+ {[%emt 0:02:30]} Kb8 {[%emt 0:07:28]} 43. Kb6 {[%emt 0:00:30]} Rd6 {[%emt 0:01:20]} 44. f4 {[%emt 0:00:30]} f6 {[%emt 0:00:34]} 45. Ra5 {[%emt 0:00:30]} h5 {[%emt 0:01:00]} 46. h4 {[%emt 0:00:30]} 1-0

[Event "TUR-ch Veterans 2020"]
[Site "Antalya-Belek"]
[Date "2020.01.21"]
[Round "4"]
[White "Buker, Muhittin"]
[Black "Tasan, Mehmet Askin"]
[Result "1-0"]
[ECO "E18"]
[WhiteElo "2008"]
[BlackElo "1877"]
[Annotator "NA"]
[PlyCount "84"]
[EventDate "2020.01.19"]
[EventCountry "TUR"]
[SourceTitle "playchess.com"]
[Source "ChessBase"]
[SourceQuality "1"]
[TimeControl "5400+30"]

1. d4 {[%emt 0:00:30]} Nf6 {[%emt 0:00:30]} 2. c4 {[%emt 0:00:00]} e6 {[%emt 0:00:30]} 3. Nf3 {[%emt 0:00:00]} b6 {[%emt 0:00:30]} 4. g3 {[%emt 0:00:00]} Bb7 {[%emt 0:00:30]} 5. Bg2 {[%emt 0:00:00]} Be7 {[%emt 0:00:30]} 6. O-O {[%emt 0:00:30]} O-O {[%emt 0:00:30]} 7. Nc3 {[%emt 0:02:30]} d6 {[%emt 0:01:30]} 8. b3 {[%emt 0:05:30] E18: Queen's Indian: Old Main Line (4 g3 Bb7 5 Bg2 Be7 6 0-0 0-0 7 Nc3)} Nbd7 {[%emt 0:04:30]} (8... Ne4 9. Bb2 Nd7 10. Nxe4 Bxe4 11. Ne1 Bxg2 12. Nxg2 Bf6 13. Qc2 Qe7 14. Rad1 c5 15. Ne3 Rac8 16. Qb1 Rfd8 17. Rd2 Bg5 18. f4 Bf6 19. Rfd1 cxd4 20. Bxd4 Bxd4 21. Rxd4 {½-½ (80) Berczes,D (2478)-Martinovici,I (2405) Budapest 2019}) 9. d5 {[%emt 0:02:30]} e5 {[%emt 0:03:30]} 10. Qc2 $146 {[%emt 0:03:30]} ({Predecessor:} 10. Bb2 Re8 11. e4 Nc5 12. Qc2 a5 13. Nd2 Bc8 14. a3 Na6 15. Nb5 {1-0 (39) Daeubler,H (2156)-Neumann,E (1852) Binz 2018}) 10... c6 {[%emt 0:06:30]} 11. e4 {[%emt 0:11:30]} Rc8 {[%emt 0:02:30]} 12. Bb2 {[%emt 0:01:30]} b5 {[%emt 0:04:30]} 13. dxc6 {[%emt 0:03:30]} Bxc6 {[%emt 0:00:30]} 14. Nd2 {[%emt 0:00:30]} Qb6 {[%emt 0:03:30]} 15. Rac1 {[%emt 0:02:30]} a6 {[%emt 0:02:30]} 16. Qb1 {[%emt 0:00:30]} b4 {[%emt 0:04:30]} 17. Nd5 {[%emt 0:00:00]} Bxd5 {[%emt 0:00:30]} 18. cxd5 {[%emt 0:00:00]} Rxc1 {[%emt 0:01:30]} 19. Bxc1 {[%emt 0:02:30]} Nc5 {[%emt 0:03:30]} 20. Nc4 {[%emt 0:00:30]} Qc7 {[%emt 0:02:30]} 21. Be3 {[%emt 0:01:30]} a5 {[%emt 0:01:30]} 22. f3 {[%emt 0:00:30]} Ra8 {[%emt 0:00:30]} 23. Rc1 {[%emt 0:04:30]} Nfd7 {[%emt 0:01:30]} 24. Nb2 {[%emt 0:00:30]} Qb8 {[%emt 0:01:30]} 25. Qc2 $16 {[%emt 0:00:30]} Bd8 {[%emt 0:00:30]} 26. Bh3 {[%emt 0:01:30]} Bb6 {[%emt 0:03:30]} 27. Kh1 {[%emt 0:05:30]} Ra7 {[%emt 0:25:30]} 28. Nc4 {[%emt 0:04:30]} Bd8 {[%emt 0:12:42]} 29. Nxd6 {[%emt 0:00:30]} Qxd6 {[%emt 0:02:10]} 30. Bxc5 {[%emt 0:00:00]} Nxc5 {[%emt 0:03:09]} 31. Qxc5 {[%emt 0:00:00]} Qxc5 {[%emt 0:00:12]} 32. Rxc5 {[%emt 0:00:00]} Kf8 {[%emt 0:00:00]} 33. d6 {[%emt 0:10:00]} Ra6 {[%emt 0:00:56]} 34. Rd5 {[%emt 0:00:30]} Rc6 {[%emt 0:00:33]} 35. Bd7 {[%emt 0:00:30]} Rc1+ {[%emt 0:01:05]} 36. Kg2 {[%emt 0:00:00]} f6 {[%emt 0:00:48]} 37. f4 {[%emt 0:01:00]} Rc2+ {[%emt 0:01:50]} 38. Kh3 {[%emt 0:00:30]} exf4 {[%emt 0:02:18]} 39. gxf4 {[%emt 0:00:30]} Bb6 {[%emt 0:01:13]} 40. Rb5 {[%emt 0:03:30]} Bg1 {[%emt 0:00:38]} 41. Be6 {[%emt 0:04:30]} Rxh2+ {[%emt 0:02:24]} 42. Kg3 {[%emt 0:00:00]} g5 {[%emt 0:00:00]} 1-0